fUSD/lending_fUSD_20251002
["ID","MTS","AMOUNT","RATE_DAILY","PERIOD"]
[388841585,1759413048521,-526.46,0.00021917,2]
[388841586,1759413048530,-500.0,0.00021917,2]
[388841587,1759413048541,-2934.84,0.00021917,2]
[388841588,1759413048550,-1236.47,0.00021917,2]
[388841589,1759413048559,-500.0,0.00021917,2]
[388841590,1759413048569,-500.0,0.00021917,2]
[388841591,1759413048579,-500.0,0.00021917,2]
[388841592,1759413048589,-507.342356,0.00021917,2]
[388841593,1759413048598,-500.0,0.00021917,2]
[388841594,1759413048607,-500.0,0.00021917,2]
[388841595,1759413048617,-500.0,0.00021917,2]
[388841596,1759413048627,-505.83907546,0.00021917,2]
[388841597,1759413048636,-155.64243,0.00021917,2]
[388841598,1759413048646,-500.0,0.00021917,2]
[388841599,1759413048655,-501.81677414,0.00021917,2]
[388841600,1759413048664,-1038.98,0.00021917,2]
[388841601,1759413048674,-2674.69,0.00021917,2]
[388841602,1759413048684,-1277.74,0.00021917,2]
[388841603,1759413048693,-500.0,0.00021917,2]
[388841604,1759413048703,-500.0,0.00021917,2]
[388841605,1759413048712,-500.0,0.00021917,2]
[388841606,1759413048721,-1010.2,0.00021917,2]
[388841607,1759413048731,-1248.47,0.00021917,2]
[388841608,1759413048740,-973.61,0.00021917,2]
[388841609,1759413048749,-500.0,0.00021917,2]
[388841610,1759413048758,-968.59,0.00021917,2]
[388841611,1759413048768,-151.0,0.00021917,2]
[388841612,1759413048777,-155.982154,0.00021917,2]
[388841613,1759413048786,-2550.92,0.00021917,2]
[388841614,1759413048795,-500.0,0.00021917,2]
[388841615,1759413048805,-151.0,0.00021917,2]
[388841616,1759413048817,-151.0,0.00021917,2]
[388841617,1759413048828,-2009.3,0.00021917,2]
[388841618,1759413048838,-500.0,0.00021917,2]
[388841619,1759413048848,-500.0,0.00021917,2]
[388841620,1759413048859,-1390.97,0.00021917,2]
[388841621,1759413048868,-500.0,0.00021917,2]
[388841622,1759413048877,-883.92,0.00021917,2]
[388841623,1759413048888,-2111.0,0.00021917,2]
[388841624,1759413048898,-505.27,0.00021917,2]
[388841625,1759413048907,-500.0,0.00021917,2]
[388841626,1759413048916,-500.0,0.00021917,2]
[388841627,1759413048925,-1285.44,0.00021917,2]
[388841628,1759413048936,-1512.43,0.00021917,2]
[388841629,1759413048946,-2256.42,0.00021917,2]
[388841630,1759413048955,-500.0,0.00021917,2]
[388841631,1759413048964,-500.0,0.00021917,2]
[388841632,1759413048974,-688.61,0.00021917,2]
[388841633,1759413048983,-500.0,0.00021917,2]
[388841634,1759413048992,-1974.89,0.00021917,2]
[388841635,1759413049001,-742.12,0.00021917,2]
[388841636,1759413049011,-3298.38,0.00021917,2]
[388841637,1759413049020,-500.0,0.00021917,2]
[388841638,1759413049030,-500.0,0.00021917,2]
[388841639,1759413049039,-500.0,0.00021917,2]
[388841640,1759413049048,-500.0,0.00021917,2]
[388841641,1759413049062,-500.0,0.00021917,2]
[388841642,1759413049071,-500.0,0.00021917,2]
[388841643,1759413049081,-500.43,0.00021917,2]
[388841644,1759413049090,-500.0,0.00021917,2]
[388841645,1759413049100,-500.0,0.00021917,2]
[388841646,1759413049110,-2417.31,0.00021917,2]
[388841647,1759413049119,-151.0,0.00021917,2]
[388841648,1759413049128,-151.0,0.00021917,2]
[388841649,1759413049138,-151.0,0.00021917,2]
[388841650,1759413049147,-500.0,0.00021917,2]
[388841651,1759413049157,-157.572553,0.00021917,2]
[388841652,1759413049166,-151.0,0.00021917,2]
[388841653,1759413049176,-500.0,0.00021917,2]
[388841654,1759413049189,-500.0,0.00021917,2]
[388841655,1759413049198,-151.0,0.00021917,2]
[388841656,1759413049207,-3975.39,0.00021917,2]
[388841657,1759413049217,-151.0,0.00021917,2]
[388841658,1759413049226,-263.261646,0.00021917,2]
[388841659,1759413049236,-1145.79,0.00021917,2]
[388841660,1759413049245,-500.0,0.00021917,2]
[388841661,1759413049255,-500.0,0.00021917,2]
[388841662,1759413049264,-500.0,0.00021917,2]
[388841663,1759413049273,-500.0,0.00021917,2]
[388841664,1759413049283,-500.0,0.00021917,2]
[388841665,1759413049292,-350.58599822,0.00021917,2]
[388841666,1759413049301,-500.0,0.00021917,2]
[388841667,1759413049311,-500.0,0.00021917,2]
[388841668,1759413049320,-165.80662403,0.00021917,2]
[388841669,1759413049329,-500.0,0.00021917,2]
[388841670,1759413049338,-972.23,0.00021917,2]
[388841671,1759413049348,-564.89,0.00021917,2]
[388841672,1759413049357,-500.0,0.00021917,2]
[388841673,1759413049366,-500.0,0.00021917,2]
[388841674,1759413049375,-500.0,0.00021917,2]
[388841675,1759413049384,-500.0,0.00021917,2]
[388841676,1759413049394,-2615.99,0.00021917,2]
[388841677,1759413049403,-500.0,0.00021917,2]
[388841678,1759413049412,-2240.77,0.00021917,2]
[388841679,1759413049421,-500.0,0.00021917,2]
[388841680,1759413049430,-500.0,0.00021917,2]
[388841681,1759413049440,-500.0,0.00021917,2]
[388841682,1759413049454,-500.0,0.00021917,2]
[388841683,1759413049463,-500.0,0.00021917,2]
[388841684,1759413049472,-326.38718255,0.00021917,2]
[388841685,1759413049481,-500.0,0.00021917,2]
[388841686,1759413049492,-1369.12,0.00021917,2]
[388841687,1759413049502,-500.0,0.00021917,2]
[388841688,1759413049511,-3002.23,0.00021917,2]
[388841689,1759413049521,-500.0,0.00021917,2]
[388841690,1759413049530,-500.0,0.00021917,2]
[388841691,1759413049539,-1219.13,0.00021917,2]
[388841692,1759413049549,-3063.23,0.00021917,2]
[388841693,1759413049558,-500.0,0.00021917,2]
[388841694,1759413049568,-500.0,0.00021917,2]
[388841695,1759413049577,-500.0,0.00021917,2]
[388841696,1759413049587,-500.0,0.00021917,2]
[388841697,1759413049596,-534.97,0.00021917,2]
[388841698,1759413049606,-3397.72,0.00021917,2]
[388841699,1759413049615,-500.0,0.00021917,2]
[388841700,1759413049625,-500.0,0.00021917,2]
[388841701,1759413049634,-500.0,0.00021917,2]
[388841702,1759413049643,-500.0,0.00021917,2]
[388841703,1759413049653,-1073.73,0.00021917,2]
[388841704,1759413049662,-500.0,0.00021917,2]
[388841705,1759413049671,-500.0,0.00021917,2]
[388841706,1759413049684,-500.0,0.00021917,2]
[388841707,1759413049693,-500.0,0.00021917,2]
[388841708,1759413049703,-500.0,0.00021917,2]
[388841709,1759413049713,-500.0,0.00021917,2]
[388841710,1759413049722,-500.0,0.00021917,2]
[388841711,1759413049731,-1249.65,0.00021917,2]
[388841712,1759413049741,-500.0,0.00021917,2]
[388841713,1759413049750,-500.0,0.00021917,2]
[388841714,1759413049759,-591.51,0.00021917,2]
[388841715,1759413049768,-851.19,0.00021917,2]
[388841716,1759413049778,-1221.99,0.00021917,2]
[388841717,1759413049787,-500.0,0.00021917,2]
[388841718,1759413049796,-500.0,0.00021917,2]
[388841719,1759413049806,-1211.76,0.00021917,2]
[388841720,1759413049819,-500.0,0.00021917,2]
[388841721,1759413049828,-500.0,0.00021917,2]
[388841722,1759413049838,-1766.78,0.00021917,2]
[388841723,1759413049847,-500.0,0.00021917,2]
[388841724,1759413049858,-500.0,0.00021917,2]
[388841725,1759413049867,-500.0,0.00021917,2]
[388841726,1759413049877,-500.0,0.00021917,2]
[388841727,1759413049886,-2074.43,0.00021917,2]
[388841728,1759413049897,-500.0,0.00021917,2]
[388841729,1759413049906,-500.0,0.00021917,2]
[388841730,1759413049915,-1235.26,0.00021917,2]
[388841731,1759413049927,-500.0,0.00021917,2]
[388841732,1759413049940,-2837.57,0.00021917,2]
[388841733,1759413049950,-500.0,0.00021917,2]
[388841734,1759413049960,-151.0,0.00021917,2]
[388841735,1759413049969,-262.67749,0.00021917,2]
[388841736,1759413049979,-2300.8,0.00021917,2]
[388841737,1759413049988,-830.13,0.00021917,2]
[388841738,1759413049998,-2111.35,0.00021917,2]
[388841739,1759413050008,-500.0,0.00021917,2]
[388841740,1759413050017,-500.0,0.00021917,2]
[388841741,1759413050027,-500.0,0.00021917,2]
[388841742,1759413050036,-500.0,0.00021917,2]
[388841743,1759413050046,-500.0,0.00021917,2]
[388841744,1759413050055,-1039.11,0.00021917,2]
[388841745,1759413050065,-1104.23,0.00021917,2]
[388841746,1759413050074,-715.33,0.00021917,2]
[388841747,1759413050084,-715.33,0.00021917,2]
[388841748,1759413050093,-500.0,0.00021917,2]
[388841749,1759413050103,-2622.81,0.00021917,2]
[388841750,1759413050112,-715.33,0.00021917,2]
[388841751,1759413050122,-715.33,0.00021917,2]
[388841752,1759413050131,-715.33,0.00021917,2]
[388841753,1759413050140,-151.0,0.00021917,2]
[388841754,1759413050150,-715.33,0.00021917,2]
[388841755,1759413050159,-2548.84,0.00021917,2]
[388841756,1759413050168,-213.020728,0.00021917,2]
[388841757,1759413050179,-715.33,0.00021917,2]
[388841758,1759413050191,-500.0,0.00021917,2]
[388841759,1759413050200,-715.33,0.00021917,2]
[388841760,1759413050210,-715.33,0.00021917,2]
[388841761,1759413050220,-715.33,0.00021917,2]
[388841762,1759413050230,-2754.86,0.00021917,2]
[388841763,1759413050239,-715.33,0.00021917,2]
[388841764,1759413050249,-715.33,0.00021917,2]
[388841765,1759413050259,-715.33,0.00021917,2]
[388841766,1759413050269,-1229.76,0.00021917,2]
[388841767,1759413050278,-715.33,0.00021917,2]
[388841768,1759413050287,-715.33,0.00021917,2]
[388841769,1759413050298,-715.33,0.00021917,2]
[388841770,1759413050571,-715.33,0.00021917,2]
[388841771,1759413050583,-715.33,0.00021917,2]
[388841772,1759413050592,-715.33,0.00021917,2]
[388841773,1759413050602,-500.0,0.00021917,2]
[388841774,1759413050611,-151.0,0.00021917,2]
[388841775,1759413050621,-500.0,0.00021917,2]
[388841776,1759413050630,-500.0,0.00021917,2]
[388841777,1759413050640,-802.6,0.00021917,2]
[388841778,1759413050649,-1481.19,0.00021917,2]
[388841779,1759413050658,-500.59390709,0.00021917,2]
[388841780,1759413050668,-2805.07,0.00021917,2]
[388841781,1759413050677,-1444.37,0.00021917,2]
[388841782,1759413050688,-500.0,0.00021917,2]
[388841783,1759413050698,-500.0,0.00021917,2]
[388841784,1759413050708,-1931.12,0.00021917,2]
[388841785,1759413050718,-500.0,0.00021917,2]
[388841786,1759413050727,-318.355,0.00021917,2]
[388841787,1759413050741,-500.0,0.00021917,2]
[388841788,1759413050751,-500.0,0.00021917,2]
[388841789,1759413050761,-500.0,0.00021917,2]
[388841790,1759413050771,-2837.29,0.00021917,2]
[388841791,1759413050781,-639.9,0.00021917,2]
[388841792,1759413050791,-430.887771,0.00021917,2]
[388841793,1759413050801,-4762.56,0.00021917,2]
[388841794,1759413050811,-430.887771,0.00021917,2]
[388841795,1759413050823,-430.887771,0.00021917,2]
[388841796,1759413050832,-430.887771,0.00021917,2]
[388841797,1759413050842,-500.0,0.00021917,2]
[388841798,1759413050852,-2825.73,0.00021917,2]
[388841799,1759413050863,-2157.06,0.00021917,2]
[388841800,1759413050872,-430.887771,0.00021917,2]
[388841801,1759413050883,-430.887771,0.00021917,2]
[388841802,1759413050895,-430.887771,0.00021917,2]
[388841803,1759413050906,-430.887771,0.00021917,2]
[388841804,1759413050916,-430.887771,0.00021917,2]
[388841805,1759413050926,-500.0,0.00021917,2]
[388841806,1759413050936,-430.887771,0.00021917,2]
[388841807,1759413050946,-430.887771,0.00021917,2]
[388841808,1759413050956,-745.51,0.00021917,2]
[388841809,1759413050966,-1817.36,0.00021917,2]
[388841810,1759413050976,-430.887771,0.00021917,2]
[388841811,1759413050986,-430.887771,0.00021917,2]
[388841812,1759413050996,-430.887771,0.00021917,2]
[388841813,1759413051006,-503.19149402,0.00021917,2]
[388841814,1759413051016,-430.887771,0.00021917,2]
[388841815,1759413051026,-430.887774,0.00021917,2]
[388841816,1759413051035,-500.0,0.00021917,2]
[388841817,1759413051045,-963.27,0.00021917,2]
[388841818,1759413051055,-500.0,0.00021917,2]
[388841819,1759413051065,-964.77,0.00021917,2]
[388841820,1759413051074,-2258.23,0.00021917,2]
[388841821,1759413051084,-2523.62,0.00021917,2]
[388841822,1759413051094,-500.0,0.00021917,2]
[388841823,1759413051104,-500.0,0.00021917,2]
[388841824,1759413051113,-500.0,0.00021917,2]
[388841825,1759413051123,-1128.11,0.00021917,2]
[388841826,1759413051133,-500.0,0.00021917,2]
[388841827,1759413051143,-1904.96,0.00021917,2]
[388841828,1759413051153,-861.88,0.00021917,2]
[388841829,1759413051163,-792.95,0.00021917,2]
[388841830,1759413051172,-2422.7,0.00021917,2]
[388841831,1759413051182,-2950.77,0.00021917,2]
[388841832,1759413051192,-500.0,0.00021917,2]
[388841833,1759413051202,-500.0,0.00021917,2]
[388841834,1759413051212,-500.0,0.00021917,2]
[388841835,1759413051222,-500.0,0.00021917,2]
[388841836,1759413051232,-500.0,0.00021917,2]
[388841837,1759413051241,-5192.19,0.00021917,2]
[388841838,1759413051251,-500.0,0.00021917,2]
[388841839,1759413051261,-500.0,0.00021917,2]
[388841840,1759413051271,-500.0,0.00021917,2]
[388841841,1759413051280,-583.01,0.00021917,2]
[388841842,1759413051290,-500.0,0.00021917,2]
[388841843,1759413051299,-151.0,0.00021917,2]
[388841844,1759413051309,-986.44,0.00021917,2]
[388841845,1759413051319,-151.0,0.00021917,2]
[388841846,1759413051328,-500.0,0.00021917,2]
[388841847,1759413051338,-151.0,0.00021917,2]
[388841848,1759413051348,-151.0,0.00021917,2]
[388841849,1759413051361,-500.0,0.00021917,2]
[388841850,1759413051372,-151.0,0.00021917,2]
[388841851,1759413051382,-151.0,0.00021917,2]
[388841852,1759413051392,-151.0,0.00021917,2]
[388841853,1759413051402,-1134.05,0.00021917,2]
[388841854,1759413051412,-2075.05,0.00021917,2]
[388841855,1759413051423,-2628.2,0.00021917,2]
[388841856,1759413051434,-1677.22,0.00021917,2]
[388841857,1759413051444,-151.0,0.00021917,2]
[388841858,1759413051455,-500.0,0.00021917,2]
[388841859,1759413051465,-500.0,0.00021917,2]
[388841860,1759413051475,-151.0,0.00021917,2]
[388841861,1759413051484,-1613.57,0.00021917,2]
[388841862,1759413051495,-151.0,0.00021917,2]
[388841863,1759413051505,-609.76,0.00021917,2]
[388841864,1759413051516,-151.0,0.00021917,2]
[388841865,1759413051526,-151.0,0.00021917,2]
[388841866,1759413051536,-2262.29,0.00021917,2]
[388841867,1759413051547,-616.49249247,0.00021917,2]
[388841868,1759413051556,-151.0,0.00021917,2]
[388841869,1759413051566,-500.0,0.00021917,2]
[388841870,1759413051576,-151.0,0.00021917,2]
[388841871,1759413051586,-188.029179,0.00021917,2]
[388841872,1759413051596,-500.0,0.00021917,2]
[388841873,1759413051606,-3625.68,0.00021917,2]
[388841874,1759413051616,-3036.93,0.00021917,2]
[388841875,1759413051626,-500.0,0.00021917,2]
[388841876,1759413051636,-151.0,0.00021917,2]
[388841877,1759413051646,-151.0,0.00021917,2]
[388841878,1759413051656,-151.0,0.00021917,2]
[388841879,1759413051666,-500.0,0.00021917,2]
[388841880,1759413051676,-151.0,0.00021917,2]
[388841881,1759413051687,-466.11367104,0.00021917,2]
[388841882,1759413051697,-151.0,0.00021917,2]
[388841883,1759413051707,-500.0,0.00021917,2]
[388841884,1759413051718,-298.16618,0.00021917,2]
[388841885,1759413051728,-500.0,0.00021917,2]
[388841886,1759413051739,-844.91,0.00021917,2]
[388841887,1759413051750,-1971.99,0.00021917,2]
[388841888,1759413051760,-1013.89,0.00021917,2]
[388841889,1759413051770,-500.0,0.00021917,2]
[388841890,1759413051781,-500.0,0.00021917,2]
[388841891,1759413051791,-2581.24,0.00021917,2]
[388841892,1759413051805,-151.0,0.00021917,2]
[388841893,1759413051820,-2120.49,0.00021917,2]
[388841894,1759413051830,-500.0,0.00021917,2]
[388841895,1759413051840,-503.10897442,0.00021917,2]
[388841896,1759413051850,-500.0,0.00021917,2]
[388841897,1759413051860,-500.0,0.00021917,2]
[388841898,1759413051871,-500.0,0.00021917,2]
[388841899,1759413051881,-2133.6,0.00021917,2]
[388841900,1759413051892,-1906.63,0.00021917,2]
[388841901,1759413051902,-500.0,0.00021917,2]
[388841902,1759413051912,-500.0,0.00021917,2]
[388841903,1759413051922,-500.0,0.00021917,2]
[388841904,1759413051932,-187.376331,0.00021917,2]
[388841905,1759413051943,-1983.18,0.00021917,2]
[388841906,1759413051953,-187.376331,0.00021917,2]
[388841907,1759413051963,-2125.18,0.00021917,2]
[388841908,1759413051973,-187.376331,0.00021917,2]
[388841909,1759413051984,-187.376331,0.00021917,2]
[388841910,1759413051993,-500.0,0.00021917,2]
[388841911,1759413052003,-187.376331,0.00021917,2]
[388841912,1759413052013,-500.0,0.00021917,2]
[388841913,1759413052023,-187.376331,0.00021917,2]
[388841914,1759413052033,-500.0,0.00021917,2]
[388841915,1759413052043,-187.376331,0.00021917,2]
[388841916,1759413052053,-187.376331,0.00021917,2]
[388841917,1759413052063,-187.376331,0.00021917,2]
[388841918,1759413052073,-1719.19,0.00021917,2]
[388841919,1759413052083,-187.376331,0.00021917,2]
[388841920,1759413052093,-187.376331,0.00021917,2]
[388841921,1759413052103,-500.0,0.00021917,2]
[388841922,1759413052113,-187.376331,0.00021917,2]
[388841923,1759413052123,-187.376331,0.00021917,2]
[388841924,1759413052133,-500.0,0.00021917,2]
[388841925,1759413052142,-187.376331,0.00021917,2]
[388841926,1759413052152,-151.0,0.00021917,2]
[388841927,1759413052162,-187.376331,0.00021917,2]
[388841928,1759413052172,-187.37634,0.00021917,2]
[388841929,1759413052182,-151.0,0.00021917,2]
[388841930,1759413052192,-151.0,0.00021917,2]
[388841931,1759413052202,-151.0,0.00021917,2]
[388841932,1759413052212,-1960.03,0.00021917,2]
[388841933,1759413052222,-1723.55,0.00021917,2]
[388841934,1759413052232,-151.0,0.00021917,2]
[388841935,1759413052242,-566.37,0.00021917,2]
[388841936,1759413052255,-500.0,0.00021917,2]
[388841937,1759413052264,-151.0,0.00021917,2]
[388841938,1759413052274,-151.0,0.00021917,2]
[388841939,1759413052284,-500.0,0.00021917,2]
[388841940,1759413052294,-2803.76,0.00021917,2]
[388841941,1759413052303,-151.0,0.00021917,2]
[388841942,1759413052314,-151.0,0.00021917,2]
[388841943,1759413052323,-500.0,0.00021917,2]
[388841944,1759413052334,-151.0,0.00021917,2]
[388841945,1759413052345,-151.0,0.00021917,2]
[388841946,1759413052355,-219.842355,0.00021917,2]
[388841947,1759413052364,-3258.28,0.00021917,2]
[388841948,1759413052374,-500.0,0.00021917,2]
[388841949,1759413052384,-500.0,0.00021917,2]
[388841950,1759413052394,-500.0,0.00021917,2]
[388841951,1759413052404,-2566.6,0.00021917,2]
[388841952,1759413052413,-500.0,0.00021917,2]
[388841953,1759413052423,-500.0,0.00021917,2]
[388841954,1759413052434,-500.0,0.00021917,2]
[388841955,1759413052444,-3833.55,0.00021917,2]
[388841956,1759413052454,-500.0,0.00021917,2]
[388841957,1759413052464,-1836.46,0.00021917,2]
[388841958,1759413052474,-1746.84,0.00021917,2]
[388841959,1759413052484,-500.0,0.00021917,2]
[388841960,1759413052494,-1655.68,0.00021917,2]
[388841961,1759413052505,-500.0,0.00021917,2]
[388841962,1759413052516,-1735.61,0.00021917,2]
[388841963,1759413052527,-500.0,0.00021917,2]
[388841964,1759413052537,-500.0,0.00021917,2]
[388841965,1759413052546,-500.0,0.00021917,2]
[388841966,1759413052557,-1898.47,0.00021917,2]
[388841967,1759413052567,-500.0,0.00021917,2]
[388841968,1759413052576,-500.0,0.00021917,2]
[388841969,1759413052586,-710.01,0.00021917,2]
[388841970,1759413052595,-2227.13,0.00021917,2]
[388841971,1759413052605,-585.75,0.00021917,2]
[388841972,1759413052615,-1849.68,0.00021917,2]
[388841973,1759413052624,-500.0,0.00021917,2]
[388841974,1759413052634,-500.0,0.00021917,2]
[388841975,1759413052643,-2537.16,0.00021917,2]
[388841976,1759413052653,-500.0,0.00021917,2]
[388841977,1759413052663,-1849.5,0.00021917,2]
[388841978,1759413052672,-500.0,0.00021917,2]
[388841979,1759413052682,-500.0,0.00021917,2]
[388841980,1759413052694,-2147.54,0.00021917,2]
[388841981,1759413052704,-500.0,0.00021917,2]
[388841982,1759413052714,-151.0,0.00021917,2]
[388841983,1759413052724,-151.0,0.00021917,2]
[388841984,1759413052733,-151.0,0.00021917,2]
[388841985,1759413052743,-500.0,0.00021917,2]
[388841986,1759413052753,-151.0,0.00021917,2]
[388841987,1759413053169,-500.0,0.00021917,2]
[388841988,1759413053195,-500.0,0.00021917,2]
[388841989,1759413053206,-1643.47,0.00021917,2]
[388841990,1759413053217,-500.0,0.00021917,2]
[388841991,1759413053228,-500.0,0.00021917,2]
[388841992,1759413053238,-500.0,0.00021917,2]
[388841993,1759413053248,-837.05,0.00021917,2]
[388841994,1759413053258,-500.0,0.00021917,2]
[388841995,1759413053267,-1437.7,0.00021917,2]
[388841996,1759413053277,-500.0,0.00021917,2]
[388841997,1759413053287,-500.0,0.00021917,2]
[388841998,1759413053297,-1838.55,0.00021917,2]
[388841999,1759413053307,-1946.35,0.00021917,2]
[388842000,1759413053317,-409.85813664,0.00021917,2]
[388842001,1759413053327,-500.0,0.00021917,2]
[388842002,1759413053338,-500.0,0.00021917,2]
[388842003,1759413053348,-636.5,0.00021917,2]
[388842004,1759413053359,-4485.35,0.00021917,2]
[388842005,1759413053368,-500.0,0.00021917,2]
[388842006,1759413053378,-500.0,0.00021917,2]
[388842007,1759413053388,-867.94,0.00021917,2]
[388842008,1759413053398,-151.0,0.00021917,2]
[388842009,1759413053409,-1941.05,0.00021917,2]
[388842010,1759413053419,-151.0,0.00021917,2]
[388842011,1759413053430,-208.70138512,0.00021917,2]
[388842012,1759413053444,-151.0,0.00021917,2]
[388842013,1759413053455,-500.0,0.00021917,2]
[388842014,1759413053464,-151.0,0.00021917,2]
[388842015,1759413053474,-500.0,0.00021917,2]
[388842016,1759413053484,-727.67,0.00021917,2]
[388842017,1759413053494,-151.0,0.00021917,2]
[388842018,1759413053503,-151.0,0.00021917,2]
[388842019,1759413053513,-151.0,0.00021917,2]
[388842020,1759413053523,-151.0,0.00021917,2]
[388842021,1759413053533,-151.0,0.00021917,2]
[388842022,1759413053543,-1042.38,0.00021917,2]
[388842023,1759413053553,-500.0,0.00021917,2]
[388842024,1759413053563,-151.0,0.00021917,2]
[388842025,1759413053573,-151.0,0.00021917,2]
[388842026,1759413053583,-151.0,0.00021917,2]
[388842027,1759413053593,-151.0,0.00021917,2]
[388842028,1759413053603,-151.0,0.00021917,2]
[388842029,1759413053614,-151.0,0.00021917,2]
[388842030,1759413053624,-151.0,0.00021917,2]
[388842031,1759413053634,-500.0,0.00021917,2]
[388842032,1759413053643,-500.0,0.00021917,2]
[388842033,1759413053653,-151.0,0.00021917,2]
[388842034,1759413053663,-500.0,0.00021917,2]
[388842035,1759413053672,-944.37,0.00021917,2]
[388842036,1759413053683,-500.0,0.00021917,2]
[388842037,1759413053695,-1377.63,0.00021917,2]
[388842038,1759413053704,-500.0,0.00021917,2]
[388842039,1759413053714,-500.0,0.00021917,2]
[388842040,1759413053723,-2001.62,0.00021917,2]
[388842041,1759413053734,-2338.92,0.00021917,2]
[388842042,1759413053744,-4126.54,0.00021917,2]
[388842043,1759413053754,-500.0,0.00021917,2]
[388842044,1759413053764,-500.0,0.00021917,2]
[388842045,1759413053774,-500.0,0.00021917,2]
[388842046,1759413053784,-2895.43,0.00021917,2]
[388842047,1759413053793,-2865.79,0.00021917,2]
[388842048,1759413053803,-151.0,0.00021917,2]
[388842049,1759413053814,-500.0,0.00021917,2]
[388842050,1759413053826,-151.0,0.00021917,2]
[388842051,1759413053836,-500.0,0.00021917,2]
[388842052,1759413053847,-296.963121,0.00021917,2]
[388842053,1759413053858,-702.08,0.00021917,2]
[388842054,1759413053868,-500.0,0.00021917,2]
[388842055,1759413053878,-1250.0,0.00021917,2]
[388842056,1759413053889,-1250.0,0.00021917,2]
[388842057,1759413053901,-500.0,0.00021917,2]
[388842058,1759413053912,-1250.0,0.00021917,2]
[388842059,1759413053922,-1461.42,0.00021917,2]
[388842060,1759413053932,-1250.0,0.00021917,2]
[388842061,1759413053944,-1250.0,0.00021917,2]
[388842062,1759413053954,-1250.0,0.00021917,2]
[388842063,1759413053964,-1250.0,0.00021917,2]
[388842064,1759413053977,-1250.0,0.00021917,2]
[388842065,1759413053987,-1250.0,0.00021917,2]
[388842066,1759413053997,-1250.0,0.00021917,2]
[388842067,1759413054007,-1250.0,0.00021917,2]
[388842068,1759413054016,-1250.0,0.00021917,2]
[388842069,1759413054026,-1250.0,0.00021917,2]
[388842070,1759413054036,-1250.0,0.00021917,2]
[388842071,1759413054045,-500.0,0.00021917,2]
[388842072,1759413054055,-1250.0,0.00021917,2]
[388842073,1759413054065,-500.0,0.00021917,2]
[388842074,1759413054075,-1250.0,0.00021917,2]
[388842075,1759413054084,-1250.0,0.00021917,2]
[388842076,1759413054094,-1250.0,0.00021917,2]
[388842077,1759413054104,-1250.0,0.00021917,2]
[388842078,1759413054114,-1250.0,0.00021917,2]
[388842079,1759413054124,-1250.0,0.00021917,2]
[388842080,1759413054134,-1250.0,0.00021917,2]
[388842081,1759413054144,-500.0,0.00021917,2]
[388842082,1759413054154,-1503.08,0.00021917,2]
[388842083,1759413054164,-1250.0,0.00021917,2]
[388842084,1759413054174,-500.0,0.00021917,2]